[Event "Live Chess"]
[Site "Chess.com"]
[Date "2024.06.02"]
[Round "-"]
[White "TheSmoulderingMaster"]
[Black "StoreySniper"]
[Result "0-1"]
[WhiteElo "1751"]
[BlackElo "2509"]
[TimeControl "300"]
[EndTime "18:04:44 PDT"]
[Termination "StoreySniper won by resignation"]

1. e4 {[%clk 0:04:57.9]} 1... g6 {[%clk 0:04:59.2]} 2. d4 {[%clk 0:04:56.6]}
2... Bg7 {[%clk 0:04:58.8]} 3. Nc3 {[%clk 0:04:55.4]} 3... c5 {[%clk 0:04:57.4]}
4. Nf3 {[%clk 0:04:53]} 4... Qa5 {[%clk 0:04:55.8]} 5. Bd2 {[%clk 0:04:43]} 5...
cxd4 {[%clk 0:04:53.2]} 6. Nd5 {[%clk 0:04:41.7]} 6... Qd8 {[%clk 0:04:51.5]} 7.
Bc4 {[%clk 0:04:33.3]} 7... Nc6 {[%clk 0:04:44.4]} 8. O-O {[%clk 0:04:30.8]}
8... e6 {[%clk 0:04:39]} 9. Nb4 {[%clk 0:04:25.7]} 9... Nge7 {[%clk 0:04:33.5]}
10. Re1 {[%clk 0:04:20.3]} 10... O-O {[%clk 0:04:31]} 11. e5 {[%clk 0:04:17.6]}
11... d5 {[%clk 0:04:23.1]} 12. exd6 {[%clk 0:04:15]} 12... Qxd6 {[%clk
0:04:21.6]} 13. Nd3 {[%clk 0:04:06.2]} 13... e5 {[%clk 0:04:12.3]} 14. Ng5
{[%clk 0:03:44.9]} 14... h6 {[%clk 0:03:55.9]} 15. Ne4 {[%clk 0:03:42.4]} 15...
Qc7 {[%clk 0:03:51.3]} 16. c3 {[%clk 0:03:35.3]} 16... Kh7 {[%clk 0:03:46.1]}
17. Bb3 {[%clk 0:03:29.6]} 17... f5 {[%clk 0:03:39.6]} 18. Nec5 {[%clk
0:03:24.3]} 18... e4 {[%clk 0:03:31.6]} 19. Bf4 {[%clk 0:03:16.5]} 19... Qb6
{[%clk 0:03:21.5]} 20. Na4 {[%clk 0:03:14]} 20... Qa5 {[%clk 0:02:58]} 21. Ndc5
{[%clk 0:03:01.1]} 21... b5 {[%clk 0:02:50.2]} 22. Be6 {[%clk 0:02:24.8]} 22...
bxa4 {[%clk 0:02:33.2]} 23. Bxc8 {[%clk 0:02:23.5]} 23... Qxc5 {[%clk
0:02:30.1]} 24. Bd7 {[%clk 0:02:21.7]} 24... d3 {[%clk 0:02:25.7]} 25. Be3
{[%clk 0:02:09.4]} 25... Qd6 {[%clk 0:02:23.6]} 26. Bxc6 {[%clk 0:02:07.3]}
26... Nxc6 {[%clk 0:02:22]} 27. h4 {[%clk 0:02:02.3]} 27... Ne5 {[%clk
0:02:20.1]} 28. h5 {[%clk 0:02:00.9]} 28... Ng4 {[%clk 0:02:18.9]} 29. hxg6+
{[%clk 0:01:59.2]} 29... Kxg6 {[%clk 0:02:18.2]} 30. g3 {[%clk 0:01:55.3]} 30...
a3 {[%clk 0:02:14.4]} 31. bxa3 {[%clk 0:01:52]} 31... Bxc3 {[%clk 0:02:11.3]}
32. Rc1 {[%clk 0:01:46]} 32... Bxe1 {[%clk 0:02:09.8]} 33. Qxe1 {[%clk
0:01:45.3]} 33... Rac8 {[%clk 0:02:08.2]} 34. Rb1 {[%clk 0:01:42.1]} 34... Ne5
{[%clk 0:01:55.8]} 35. Bxa7 {[%clk 0:01:37.4]} 35... Nf3+ {[%clk 0:01:54.1]} 0-1

[Event "Live Chess"]
[Site "Chess.com"]
[Date "2024.06.02"]
[Round "-"]
[White "oscalik"]
[Black "stevochess11"]
[Result "1-0"]
[WhiteElo "2285"]
[BlackElo "1691"]
[TimeControl "300"]
[EndTime "18:05:46 PDT"]
[Termination "oscalik won by checkmate"]

1. e4 {[%clk 0:04:57.6]} 1... c5 {[%clk 0:04:58.8]} 2. Nc3 {[%clk 0:04:56.2]}
2... g6 {[%clk 0:04:57.1]} 3. f4 {[%clk 0:04:55.2]} 3... Nc6 {[%clk 0:04:55.3]}
4. Nf3 {[%clk 0:04:54.8]} 4... Bg7 {[%clk 0:04:53.6]} 5. Bc4 {[%clk 0:04:54.4]}
5... Nf6 {[%clk 0:04:52.5]} 6. O-O {[%clk 0:04:52]} 6... O-O {[%clk 0:04:51.4]}
7. d3 {[%clk 0:04:51.5]} 7... d6 {[%clk 0:04:48.9]} 8. Qe1 {[%clk 0:04:51]} 8...
Bg4 {[%clk 0:04:46.2]} 9. Qh4 {[%clk 0:04:48.8]} 9... Bxf3 {[%clk 0:04:44.7]}
10. Rxf3 {[%clk 0:04:48.4]} 10... Nd4 {[%clk 0:04:41.8]} 11. Rh3 {[%clk
0:04:46.7]} 11... Nxc2 {[%clk 0:04:38.1]} 12. e5 {[%clk 0:04:43.9]} 12... dxe5
{[%clk 0:04:35.5]} 13. Nd5 {[%clk 0:04:37.6]} 13... h5 {[%clk 0:04:28.8]} 14. f5
{[%clk 0:04:05.1]} 14... Nxd5 {[%clk 0:04:19.4]} 15. fxg6 {[%clk 0:04:02.3]}
15... fxg6 {[%clk 0:04:16.4]} 16. Qe4 {[%clk 0:03:54.5]} 16... Rf4 {[%clk
0:04:11.2]} 17. Bxd5+ {[%clk 0:03:50.3]} 17... Kh7 {[%clk 0:04:07.6]} 18. Rxh5+
{[%clk 0:03:48.3]} 18... Bh6 {[%clk 0:04:05.8]} 19. Bxf4 {[%clk 0:03:38.4]}
19... exf4 {[%clk 0:04:01.3]} 20. Rf1 {[%clk 0:03:08.3]} 20... Ne3 {[%clk
0:03:56.7]} 21. Bf7 {[%clk 0:02:45.4]} 21... Qd6 {[%clk 0:03:42.6]} 22. Rxf4
{[%clk 0:02:30.2]} 22... Kg7 {[%clk 0:03:27.2]} 23. Rxh6 {[%clk 0:02:21.7]}
23... Kxh6 {[%clk 0:03:24.9]} 24. Qxe3 {[%clk 0:02:20.4]} 24... g5 {[%clk
0:03:21.3]} 25. Rf5 {[%clk 0:01:47.7]} 25... Qd4 {[%clk 0:03:08.3]} 26. Qxd4
{[%clk 0:01:46.8]} 26... cxd4 {[%clk 0:03:07.3]} 27. Bd5 {[%clk 0:01:45.2]}
27... Rc8 {[%clk 0:03:03.8]} 28. Bb3 {[%clk 0:01:33.5]} 28... Rc1+ {[%clk
0:02:54.9]} 29. Kf2 {[%clk 0:01:31.8]} 29... a6 {[%clk 0:02:48.4]} 30. a4 {[%clk
0:01:28]} 30... Rb1 {[%clk 0:02:44.2]} 31. Kg3 {[%clk 0:01:21.7]} 31... Rxb2
{[%clk 0:02:42.3]} 32. Bc4 {[%clk 0:01:20.3]} 32... Rb4 {[%clk 0:02:37]} 33. a5
{[%clk 0:01:18.3]} 33... Rb2 {[%clk 0:02:26.3]} 34. Re5 {[%clk 0:01:17.1]} 34...
Rb4 {[%clk 0:02:12.5]} 35. Re6+ {[%clk 0:01:15]} 35... Kh5 {[%clk 0:02:10]} 36.
Rxe7 {[%clk 0:01:14.9]} 36... g4 {[%clk 0:02:07.1]} 37. Bd5 {[%clk 0:01:01.5]}
37... Rb5 {[%clk 0:02:03.8]} 38. Bxb7 {[%clk 0:00:42.4]} 38... Rxa5 {[%clk
0:02:02.5]} 39. Kf4 {[%clk 0:00:39.5]} 39... Ra2 {[%clk 0:01:59.2]} 40. Be4
{[%clk 0:00:31]} 40... Rf2+ {[%clk 0:01:48.8]} 41. Ke5 {[%clk 0:00:30]} 41...
Kg5 {[%clk 0:01:43.6]} 42. Kxd4 {[%clk 0:00:28.8]} 42... a5 {[%clk 0:01:40.5]}
43. Ke3 {[%clk 0:00:28.1]} 43... Rf8 {[%clk 0:01:37.6]} 44. Re5+ {[%clk
0:00:27.5]} 44... Kh6 {[%clk 0:01:35.8]} 45. Rxa5 {[%clk 0:00:27.1]} 45... Rf6
{[%clk 0:01:31.5]} 46. h3 {[%clk 0:00:26.2]} 46... gxh3 {[%clk 0:01:29.7]} 47.
gxh3 {[%clk 0:00:26.1]} 47... Rf8 {[%clk 0:01:26.8]} 48. d4 {[%clk 0:00:25.6]}
48... Rd8 {[%clk 0:01:25.6]} 49. d5 {[%clk 0:00:25.2]} 49... Kg5 {[%clk
0:01:24.2]} 50. Kd4 {[%clk 0:00:24.7]} 50... Kh4 {[%clk 0:01:22.9]} 51. Ra6
{[%clk 0:00:24.3]} 51... Kxh3 {[%clk 0:01:21.6]} 52. d6 {[%clk 0:00:24]} 52...
Kg4 {[%clk 0:01:18.5]} 53. Kd5 {[%clk 0:00:23.5]} 53... Kf4 {[%clk 0:01:14.7]}
54. Bg6 {[%clk 0:00:21.9]} 54... Kg5 {[%clk 0:01:08.7]} 55. Bf7 {[%clk 0:00:21]}
55... Kf6 {[%clk 0:01:06.6]} 56. Be6 {[%clk 0:00:20.6]} 56... Rb8 {[%clk
0:01:00.1]} 57. Bd7 {[%clk 0:00:17.5]} 57... Rd8 {[%clk 0:00:58.1]} 58. Bc6
{[%clk 0:00:16.2]} 58... Rb8 {[%clk 0:00:54.5]} 59. Ra2 {[%clk 0:00:13.2]} 59...
Rd8 {[%clk 0:00:52.5]} 60. Rf2+ {[%clk 0:00:12.2]} 60... Kg5 {[%clk 0:00:50.9]}
61. Ke6 {[%clk 0:00:12.1]} 61... Kg6 {[%clk 0:00:47.7]} 62. Ke7 {[%clk
0:00:11.4]} 62... Rh8 {[%clk 0:00:44.8]} 63. d7 {[%clk 0:00:10.7]} 63... Rh7+
{[%clk 0:00:43.4]} 64. Kd6 {[%clk 0:00:10.3]} 64... Rh8 {[%clk 0:00:42]} 65. Kc7
{[%clk 0:00:09.8]} 65... Kg5 {[%clk 0:00:38.6]} 66. d8=Q+ {[%clk 0:00:09.7]}
66... Rxd8 {[%clk 0:00:37.1]} 67. Kxd8 {[%clk 0:00:09.6]} 67... Kg4 {[%clk
0:00:35.6]} 68. Ke7 {[%clk 0:00:09.5]} 68... Kg3 {[%clk 0:00:33.8]} 69. Rf6
{[%clk 0:00:09.4]} 69... Kg4 {[%clk 0:00:32.7]} 70. Ke6 {[%clk 0:00:09.3]} 70...
Kg3 {[%clk 0:00:31.6]} 71. Bd5 {[%clk 0:00:09.2]} 71... Kg4 {[%clk 0:00:30.6]}
72. Ke5 {[%clk 0:00:09.1]} 72... Kg3 {[%clk 0:00:29.5]} 73. Rf5 {[%clk
0:00:08.7]} 73... Kg4 {[%clk 0:00:28.6]} 74. Be4 {[%clk 0:00:08.6]} 74... Kg3
{[%clk 0:00:27.6]} 75. Kd4 {[%clk 0:00:08.2]} 75... Kg4 {[%clk 0:00:26.5]} 76.
Ke3 {[%clk 0:00:07.9]} 76... Kg3 {[%clk 0:00:24.9]} 77. Rf4 {[%clk 0:00:07.5]}
77... Kh3 {[%clk 0:00:21.5]} 78. Bf5+ {[%clk 0:00:06.8]} 78... Kg2 {[%clk
0:00:20.2]} 79. Ke4 {[%clk 0:00:05.7]} 79... Kg3 {[%clk 0:00:19.1]} 80. Ke3
{[%clk 0:00:04.3]} 80... Kg2 {[%clk 0:00:18]} 81. Rf3 {[%clk 0:00:03.7]} 81...
Kg1 {[%clk 0:00:15.3]} 82. Rf2 {[%clk 0:00:03.3]} 82... Kh1 {[%clk 0:00:13.5]}
83. Kf3 {[%clk 0:00:03]} 83... Kg1 {[%clk 0:00:12]} 84. Bh3 {[%clk 0:00:01.6]}
84... Kh1 {[%clk 0:00:10]} 85. Kg3 {[%clk 0:00:01.3]} 85... Kg1 {[%clk 0:00:09]}
86. Rf1# {[%clk 0:00:01.2]} 1-0

[Event "Live Chess"]
[Site "Chess.com"]
[Date "2024.06.02"]
[Round "-"]
[White "NAZRIZ1977"]
[Black "gobbles19"]
[Result "0-1"]
[WhiteElo "2128"]
[BlackElo "2267"]
[TimeControl "300"]
[EndTime "18:06:10 PDT"]
[Termination "gobbles19 won by resignation"]

1. d4 {[%clk 0:04:56]} 1... Nf6 {[%clk 0:04:58.6]} 2. Nf3 {[%clk 0:04:55]} 2...
e6 {[%clk 0:04:54.8]} 3. e3 {[%clk 0:04:54.1]} 3... c5 {[%clk 0:04:53.5]} 4.
Nbd2 {[%clk 0:04:52.7]} 4... Nc6 {[%clk 0:04:47.9]} 5. c3 {[%clk 0:04:50.9]}
5... Be7 {[%clk 0:04:46.3]} 6. Bd3 {[%clk 0:04:49.9]} 6... O-O {[%clk
0:04:44.4]} 7. O-O {[%clk 0:04:48.6]} 7... b6 {[%clk 0:04:43.4]} 8. Qe2 {[%clk
0:04:44.7]} 8... Bb7 {[%clk 0:04:38]} 9. Re1 {[%clk 0:04:43.6]} 9... d6 {[%clk
0:04:36.7]} 10. e4 {[%clk 0:04:42.5]} 10... cxd4 {[%clk 0:04:34.2]} 11. cxd4
{[%clk 0:04:41.4]} 11... Nb4 {[%clk 0:04:27.6]} 12. Bb1 {[%clk 0:04:40.2]} 12...
Rc8 {[%clk 0:04:26.3]} 13. a3 {[%clk 0:04:38.8]} 13... Nc2 {[%clk 0:04:24.8]}
14. Bxc2 {[%clk 0:04:35.4]} 14... Rxc2 {[%clk 0:04:24.7]} 15. Qd3 {[%clk
0:04:34.8]} 15... Qc8 {[%clk 0:04:14.4]} 16. e5 {[%clk 0:04:29.2]} 16... Ba6
{[%clk 0:04:09.5]} 17. Qe3 {[%clk 0:04:12.3]} 17... dxe5 {[%clk 0:03:43.2]} 18.
dxe5 {[%clk 0:04:10.9]} 18... Nd5 {[%clk 0:03:38]} 19. Qe4 {[%clk 0:04:05]}
19... Bb7 {[%clk 0:03:21.7]} 20. Qg4 {[%clk 0:04:01.9]} 20... Qc5 {[%clk
0:03:03.3]} 21. Ne4 {[%clk 0:03:55.5]} 21... Qc7 {[%clk 0:02:55.5]} 22. Bh6
{[%clk 0:03:48.7]} 22... g6 {[%clk 0:02:46.2]} 23. Bxf8 {[%clk 0:03:47.2]} 23...
Bxf8 {[%clk 0:02:46.1]} 24. Rac1 {[%clk 0:03:45.5]} 24... Rxc1 {[%clk
0:02:43.2]} 0-1

[Event "Live Chess"]
[Site "Chess.com"]
[Date "2024.06.02"]
[Round "-"]
[White "MagnersCarlsberg2870"]
[Black "mychess51"]
[Result "1-0"]
[WhiteElo "1775"]
[BlackElo "1689"]
[TimeControl "300"]
[EndTime "18:06:18 PDT"]
[Termination "MagnersCarlsberg2870 won by checkmate"]

1. d4 {[%clk 0:04:56.9]} 1... e6 {[%clk 0:04:59.3]} 2. Nd2 {[%clk 0:04:54]} 2...
d5 {[%clk 0:04:58.7]} 3. e3 {[%clk 0:04:52.9]} 3... Nf6 {[%clk 0:04:58.6]} 4.
Bd3 {[%clk 0:04:52.1]} 4... Be7 {[%clk 0:04:58.5]} 5. Ngf3 {[%clk 0:04:51]} 5...
c5 {[%clk 0:04:57.9]} 6. c3 {[%clk 0:04:50.1]} 6... Nc6 {[%clk 0:04:57]} 7. Qe2
{[%clk 0:04:49.4]} 7... c4 {[%clk 0:04:55.9]} 8. Bc2 {[%clk 0:04:48.2]} 8... b5
{[%clk 0:04:55.2]} 9. O-O {[%clk 0:04:47.2]} 9... a5 {[%clk 0:04:54.7]} 10. e4
{[%clk 0:04:46.2]} 10... O-O {[%clk 0:04:49.9]} 11. e5 {[%clk 0:04:43.7]} 11...
Nd7 {[%clk 0:04:48.1]} 12. Re1 {[%clk 0:04:32.1]} 12... f6 {[%clk 0:04:43.9]}
13. Nf1 {[%clk 0:04:28.2]} 13... f5 {[%clk 0:04:42.3]} 14. Ng3 {[%clk
0:04:23.2]} 14... a4 {[%clk 0:04:36.2]} 15. Nh5 {[%clk 0:04:20.9]} 15... b4
{[%clk 0:04:30.7]} 16. Nf4 {[%clk 0:04:19.2]} 16... Nb6 {[%clk 0:04:21.2]} 17.
Nh3 {[%clk 0:04:09]} 17... a3 {[%clk 0:04:13.4]} 18. bxa3 {[%clk 0:03:57.9]}
18... bxc3 {[%clk 0:04:10.8]} 19. Nhg5 {[%clk 0:03:54.5]} 19... Bxa3 {[%clk
0:04:02.4]} 20. Bxa3 {[%clk 0:03:49]} 20... Rxa3 {[%clk 0:04:00.2]} 21. Nh3
{[%clk 0:03:46.8]} 21... Bd7 {[%clk 0:03:51.2]} 22. Nfg5 {[%clk 0:03:45.1]}
22... Nxd4 {[%clk 0:03:36.6]} 23. Qh5 {[%clk 0:03:42]} 23... h6 {[%clk
0:03:34.5]} 24. Qg6 {[%clk 0:03:37.5]} 24... hxg5 {[%clk 0:03:14.1]} 25. Nxg5
{[%clk 0:03:35.8]} 25... Qxg5 {[%clk 0:03:10.1]} 26. Qxg5 {[%clk 0:03:30.8]}
26... Nxc2 {[%clk 0:03:08.4]} 27. Rec1 {[%clk 0:03:29.8]} 27... Nxa1 {[%clk
0:03:06.3]} 28. Rxa1 {[%clk 0:03:28.3]} 28... Re8 {[%clk 0:02:11.7]} 29. h4
{[%clk 0:03:26]} 29... Ra7 {[%clk 0:01:48]} 30. h5 {[%clk 0:03:24.5]} 30... Ba4
{[%clk 0:01:34.3]} 31. h6 {[%clk 0:03:19.1]} 31... c2 {[%clk 0:01:19.9]} 32. Qg6
{[%clk 0:03:14.4]} 32... Ree7 {[%clk 0:00:57.3]} 33. g3 {[%clk 0:03:10.1]} 33...
d4 {[%clk 0:00:44.5]} 34. Kg2 {[%clk 0:03:06]} 34... d3 {[%clk 0:00:42.5]} 35.
Rh1 {[%clk 0:03:03.7]} 35... Bc6+ {[%clk 0:00:33.1]} 36. f3 {[%clk 0:03:02.3]}
36... d2 {[%clk 0:00:22.3]} 37. hxg7 {[%clk 0:02:54.6]} 37... Bxf3+ {[%clk
0:00:16.6]} 38. Kf2 {[%clk 0:02:26.2]} 38... d1=Q {[%clk 0:00:16.5]} 39. Rh8#
{[%clk 0:02:24.1]} 1-0

[Event "Live Chess"]
[Site "Chess.com"]
[Date "2024.06.02"]
[Round "-"]
[White "NeilDruggan73"]
[Black "Cruiseylee78"]
[Result "1-0"]
[WhiteElo "1776"]
[BlackElo "1667"]
[TimeControl "300"]
[EndTime "18:06:20 PDT"]
[Termination "NeilDruggan73 won on time"]

1. d4 {[%clk 0:04:56.3]} 1... d6 {[%clk 0:04:58.7]} 2. Bg5 {[%clk 0:04:52.9]}
2... Nd7 {[%clk 0:04:58.6]} 3. e4 {[%clk 0:04:50.5]} 3... h6 {[%clk 0:04:57.6]}
4. Bh4 {[%clk 0:04:48.2]} 4... Ngf6 {[%clk 0:04:55.4]} 5. Nc3 {[%clk 0:04:44.5]}
5... e5 {[%clk 0:04:49.1]} 6. Nf3 {[%clk 0:04:39.7]} 6... c6 {[%clk 0:04:47.2]}
7. Bd3 {[%clk 0:04:36.9]} 7... Be7 {[%clk 0:04:46.1]} 8. h3 {[%clk 0:04:28.7]}
8... Qc7 {[%clk 0:04:44.6]} 9. Qd2 {[%clk 0:04:20]} 9... Nf8 {[%clk 0:04:43.4]}
10. O-O-O {[%clk 0:04:13.9]} 10... b5 {[%clk 0:04:41.3]} 11. d5 {[%clk
0:04:09.3]} 11... cxd5 {[%clk 0:04:36.1]} 12. Bxf6 {[%clk 0:04:05.7]} 12... Bxf6
{[%clk 0:04:33.6]} 13. Nxd5 {[%clk 0:04:04.6]} 13... Qc6 {[%clk 0:04:24.7]} 14.
Qb4 {[%clk 0:03:59.9]} 14... Bd7 {[%clk 0:04:11.5]} 15. h4 {[%clk 0:03:29.5]}
15... a5 {[%clk 0:03:59.9]} 16. Qd2 {[%clk 0:03:14.9]} 16... Ne6 {[%clk
0:03:55]} 17. Nxf6+ {[%clk 0:03:12]} 17... gxf6 {[%clk 0:03:53.4]} 18. g3 {[%clk
0:03:02.7]} 18... Nd4 {[%clk 0:03:48.9]} 19. Nxd4 {[%clk 0:03:00.5]} 19... exd4
{[%clk 0:03:48.8]} 20. Qf4 {[%clk 0:02:57.4]} 20... Rc8 {[%clk 0:03:45.7]} 21.
Qxf6 {[%clk 0:02:54.6]} 21... Rg8 {[%clk 0:03:41.6]} 22. Qxh6 {[%clk 0:02:44.3]}
22... Qc5 {[%clk 0:02:28.1]} 23. Rhe1 {[%clk 0:02:28.8]} 23... Ke7 {[%clk
0:02:14.9]} 24. Qd2 {[%clk 0:01:50.8]} 24... b4 {[%clk 0:02:09.6]} 25. b3 {[%clk
0:01:46.1]} 25... a4 {[%clk 0:01:58.7]} 26. Bc4 {[%clk 0:01:42.6]} 26... axb3
{[%clk 0:01:54.6]} 27. Bxb3 {[%clk 0:01:39.5]} 27... Be6 {[%clk 0:01:49.3]} 28.
Qxd4 {[%clk 0:01:35.6]} 28... Bxb3 {[%clk 0:01:44.7]} 29. Qxc5 {[%clk 0:01:31]}
29... dxc5 {[%clk 0:01:41.6]} 30. axb3 {[%clk 0:01:29.4]} 30... c4 {[%clk
0:01:37.8]} 31. bxc4 {[%clk 0:01:25.4]} 31... Rxc4 {[%clk 0:01:34.9]} 32. Rd3
{[%clk 0:01:21.5]} 32... Rgc8 {[%clk 0:01:28.8]} 33. Re2 {[%clk 0:01:20.6]}
33... Kf6 {[%clk 0:01:22.9]} 34. Kb2 {[%clk 0:01:18.7]} 34... Kg6 {[%clk
0:01:15.9]} 35. g4 {[%clk 0:01:16]} 35... Kf6 {[%clk 0:01:12.3]} 36. f4 {[%clk
0:01:12.6]} 36... Re8 {[%clk 0:01:08.3]} 37. Rd6+ {[%clk 0:01:05.8]} 37... Kg7
{[%clk 0:01:03.8]} 38. e5 {[%clk 0:00:45]} 38... Rxf4 {[%clk 0:00:58.9]} 39. e6
{[%clk 0:00:44.1]} 39... fxe6 {[%clk 0:00:54]} 40. Rdxe6 {[%clk 0:00:42.1]}
40... Re7 {[%clk 0:00:51.6]} 41. Rxe7+ {[%clk 0:00:39.6]} 41... Kg8 {[%clk
0:00:06.1]} 42. R2e4 {[%clk 0:00:35.6]} 42... Rf2 {[%clk 0:00:02.9]} 43. Rxb4
{[%clk 0:00:33.3]} 1-0

[Event "Live Chess"]
[Site "Chess.com"]
[Date "2024.06.02"]
[Round "-"]
[White "Harry_Li"]
[Black "ACM42"]
[Result "1-0"]
[WhiteElo "2119"]
[BlackElo "2161"]
[TimeControl "300"]
[EndTime "18:07:28 PDT"]
[Termination "Harry_Li won by checkmate"]

1. Nf3 {[%clk 0:04:57.2]} 1... g6 {[%clk 0:04:55.1]} 2. d4 {[%clk 0:04:55.1]}
2... Bg7 {[%clk 0:04:54.2]} 3. c4 {[%clk 0:04:54.7]} 3... Nf6 {[%clk 0:04:53.3]}
4. Nc3 {[%clk 0:04:54.3]} 4... O-O {[%clk 0:04:52.7]} 5. e4 {[%clk 0:04:53.7]}
5... d6 {[%clk 0:04:52]} 6. Be2 {[%clk 0:04:53.4]} 6... Nbd7 {[%clk 0:04:50.9]}
7. O-O {[%clk 0:04:52.7]} 7... c5 {[%clk 0:04:50]} 8. d5 {[%clk 0:04:50]} 8...
a6 {[%clk 0:04:49.1]} 9. a4 {[%clk 0:04:48.9]} 9... b6 {[%clk 0:04:44.4]} 10. h3
{[%clk 0:04:42.3]} 10... Ne5 {[%clk 0:04:42.8]} 11. Nd2 {[%clk 0:04:40]} 11...
Ne8 {[%clk 0:04:31]} 12. f4 {[%clk 0:04:38.9]} 12... Nd7 {[%clk 0:04:29.6]} 13.
Nf3 {[%clk 0:04:37.8]} 13... Qc7 {[%clk 0:04:28.4]} 14. Bd3 {[%clk 0:04:32]}
14... e5 {[%clk 0:04:26.7]} 15. f5 {[%clk 0:04:18.9]} 15... f6 {[%clk
0:04:02.4]} 16. g4 {[%clk 0:03:54.4]} 16... g5 {[%clk 0:04:00.5]} 17. h4 {[%clk
0:03:48.2]} 17... h6 {[%clk 0:03:59]} 18. hxg5 {[%clk 0:03:43.1]} 18... hxg5
{[%clk 0:03:56.6]} 19. Kf2 {[%clk 0:03:36.8]} 19... Kf7 {[%clk 0:03:53]} 20. Rh1
{[%clk 0:03:35.3]} 20... Rh8 {[%clk 0:03:49.7]} 21. Rxh8 {[%clk 0:03:33.4]}
21... Bxh8 {[%clk 0:03:48.5]} 22. Qh1 {[%clk 0:03:32.8]} 22... Bg7 {[%clk
0:03:40.6]} 23. Qh5+ {[%clk 0:03:20.6]} 23... Ke7 {[%clk 0:03:37.1]} 24. Bxg5
{[%clk 0:03:00]} 24... fxg5 {[%clk 0:03:35.7]} 25. Nxg5 {[%clk 0:02:59.3]} 25...
Ndf6 {[%clk 0:03:21.5]} 26. Qh4 {[%clk 0:02:09.3]} 26... Kd8 {[%clk 0:03:16.1]}
27. Kf3 {[%clk 0:02:04.8]} 27... Qe7 {[%clk 0:03:04.2]} 28. Rh1 {[%clk
0:01:58.8]} 28... Ra7 {[%clk 0:03:00.7]} 29. Ne6+ {[%clk 0:01:47.2]} 29... Bxe6
{[%clk 0:02:57]} 30. dxe6 {[%clk 0:01:47.1]} 30... Nc7 {[%clk 0:02:25.7]} 31. g5
{[%clk 0:01:38.7]} 31... Nxe6 {[%clk 0:02:23.7]} 32. fxe6 {[%clk 0:01:27]} 32...
Ne8 {[%clk 0:02:18.2]} 33. Qg4 {[%clk 0:01:11.8]} 33... Nc7 {[%clk 0:01:48.9]}
34. Nd5 {[%clk 0:01:11.1]} 34... Qxe6 {[%clk 0:01:41.6]} 35. Nxb6 {[%clk
0:00:59.1]} 35... Qxg4+ {[%clk 0:01:18.9]} 36. Kxg4 {[%clk 0:00:59]} 36... Rb7
{[%clk 0:01:18.1]} 37. a5 {[%clk 0:00:58.4]} 37... Ne6 {[%clk 0:01:11.7]} 38.
Kf5 {[%clk 0:00:44.6]} 38... Ke7 {[%clk 0:01:05.2]} 39. Rh7 {[%clk 0:00:20]}
39... Kf7 {[%clk 0:00:52.6]} 40. g6+ {[%clk 0:00:17.6]} 40... Kg8 {[%clk
0:00:42.5]} 41. Kxe6 {[%clk 0:00:15.7]} 41... Rb8 {[%clk 0:00:34.5]} 42. Kxd6
{[%clk 0:00:14.6]} 42... Rd8+ {[%clk 0:00:33.1]} 43. Nd7 {[%clk 0:00:12.5]}
43... Re8 {[%clk 0:00:29.3]} 44. Nxc5 {[%clk 0:00:10.8]} 44... Rb8 {[%clk
0:00:26.4]} 45. Ne6 {[%clk 0:00:10]} 45... Bf6 {[%clk 0:00:24.5]} 46. g7 {[%clk
0:00:07.3]} 46... Bxg7 {[%clk 0:00:21.6]} 47. Rxg7+ {[%clk 0:00:06.5]} 47... Kh8
{[%clk 0:00:21]} 48. Rf7 {[%clk 0:00:05]} 48... Rxb2 {[%clk 0:00:19.3]} 49. Kxe5
{[%clk 0:00:04.5]} 49... Rg2 {[%clk 0:00:17.7]} 50. Nf4 {[%clk 0:00:04.4]} 50...
Rg1 {[%clk 0:00:15.4]} 51. Rf5 {[%clk 0:00:03.7]} 51... Kg8 {[%clk 0:00:13.4]}
52. c5 {[%clk 0:00:03.6]} 52... Rc1 {[%clk 0:00:12.2]} 53. Kd6 {[%clk
0:00:03.5]} 53... Rd1 {[%clk 0:00:11.1]} 54. c6 {[%clk 0:00:03.4]} 54... Rxd3+
{[%clk 0:00:10.3]} 55. Nxd3 {[%clk 0:00:03.3]} 55... Kg7 {[%clk 0:00:09.2]} 56.
c7 {[%clk 0:00:03.2]} 56... Kg6 {[%clk 0:00:08.8]} 57. Re5 {[%clk 0:00:03.1]}
57... Kf6 {[%clk 0:00:07.9]} 58. c8=Q {[%clk 0:00:03]} 58... Kg7 {[%clk
0:00:07.2]} 59. Qd7+ {[%clk 0:00:02.4]} 59... Kg6 {[%clk 0:00:06.4]} 60. Re6+
{[%clk 0:00:02.1]} 60... Kg5 {[%clk 0:00:05.6]} 61. Qe7+ {[%clk 0:00:01.8]}
61... Kg4 {[%clk 0:00:04.9]} 62. Rf6 {[%clk 0:00:01.7]} 62... Kg3 {[%clk
0:00:04.1]} 63. Qg7+ {[%clk 0:00:01.6]} 63... Kh2 {[%clk 0:00:03.7]} 64. Rh6#
{[%clk 0:00:01.5]} 1-0

[Event "Live Chess"]
[Site "Chess.com"]
[Date "2024.06.02"]
[Round "-"]
[White "StoreySniper"]
[Black "Plato_77"]
[Result "1-0"]
[WhiteElo "2509"]
[BlackElo "1318"]
[TimeControl "300"]
[EndTime "18:07:34 PDT"]
[Termination "StoreySniper won by resignation"]

1. e4 {[%clk 0:04:56.6]} 1... e6 {[%clk 0:04:58.1]} 2. d4 {[%clk 0:04:52.1]}
2... d5 {[%clk 0:04:57.4]} 3. Nd2 {[%clk 0:04:51.5]} 3... c5 {[%clk 0:04:55.4]}
4. exd5 {[%clk 0:04:49.8]} 4... Qxd5 {[%clk 0:04:54.5]} 5. Ngf3 {[%clk
0:04:49.1]} 5... Nc6 {[%clk 0:04:53]} 6. Bc4 {[%clk 0:04:47.5]} 6... Qd8 {[%clk
0:04:46.4]} 7. Qe2 {[%clk 0:04:46.4]} 7... cxd4 {[%clk 0:04:45.1]} 8. Nb3 {[%clk
0:04:43]} 8... Bb4+ {[%clk 0:04:38.6]} 9. c3 {[%clk 0:04:41.2]} 9... dxc3 {[%clk
0:04:35.7]} 10. O-O {[%clk 0:04:40.3]} 10... Nge7 {[%clk 0:04:29.2]} 11. Ng5
{[%clk 0:04:30.1]} 11... O-O {[%clk 0:04:15.8]} 12. bxc3 {[%clk 0:04:26]} 12...
Bxc3 {[%clk 0:04:11.4]} 13. Qc2 {[%clk 0:04:22.4]} 13... Ng6 {[%clk 0:03:53.8]}
14. Qxc3 {[%clk 0:04:16.2]} 14... a6 {[%clk 0:03:30.2]} 15. Bb2 {[%clk 0:04:14]}
15... Qf6 {[%clk 0:03:22.8]} 16. Qxf6 {[%clk 0:04:11.2]} 16... gxf6 {[%clk
0:03:22.7]} 17. Ne4 {[%clk 0:04:07.9]} 17... b5 {[%clk 0:03:19.6]} 18. Nxf6+
{[%clk 0:04:06.1]} 1-0